{"text_format":"3","workbook":"xlsx","n_sheets":3,"sheets":["Лист1","Лист2","Лист3"],"read":"whole","date_system":"1900"}

{"sheet":"Лист1","index":0,"n_rows":17,"n_cols":9,"rows_kept":17}
[null,"x","y","z","w"]
[null,0,0,0,0,{"$f":"OR(B2,C2)","v":false},{"$f":"C2<>D2","v":false},{"$f":"NOT(E2)","v":true},{"$f":"AND(F2,G2,H2)","v":false}]
[null,0,0,0,1,{"$f":"OR(B3,C3)","v":false},{"$f":"C3<>D3","v":false},{"$f":"NOT(E3)","v":false},{"$f":"AND(F3,G3,H3)","v":false}]
[null,0,0,1,0,false,true,true,false]
[null,0,0,1,1,false,true,false,false]
[null,0,1,0,0,true,true,true,true]
[null,0,1,0,1,true,true,false,false]
[null,0,1,1,0,true,false,true,false]
[null,0,1,1,1,true,false,false,false]
[null,1,0,0,0,true,false,true,false]
[null,1,0,0,1,true,false,false,false]
[null,1,0,1,0,true,true,true,true]
[null,1,0,1,1,true,true,false,false]
[null,1,1,0,0,true,true,true,true]
[null,1,1,0,1,true,true,false,false]
[null,1,1,1,0,true,false,true,false]
[null,1,1,1,1,true,false,false,false]

{"sheet":"Лист2","index":1,"n_rows":0,"n_cols":0,"rows_kept":0}

{"sheet":"Лист3","index":2,"n_rows":0,"n_cols":0,"rows_kept":0}